fUST/lending_fUST_20251115
["ID","MTS","AMOUNT","RATE_DAILY","PERIOD"]
[394022814,1763200254853,-9286.34,0.000335,14]
[394022815,1763200254863,-151.0,0.000335,31]
[394022816,1763200254872,-709.64,0.00033506,2]
[394022817,1763200254882,-500.0,0.0003351,7]
[394022818,1763200254891,-5079.11610223,0.00033911,2]
[394022819,1763200254899,-150.63,0.00034,7]
[394022820,1763200254908,-362.21152517,0.00034,7]
[394022821,1763200254917,-709.64,0.00034054,2]
[394022822,1763200254927,-500.0,0.000341,7]
[394022823,1763200254936,-523.0,0.00034311,7]
[394022824,1763200254945,-5000.0,0.00034398,2]
[394022825,1763200254954,-151.0,0.00034398,31]
[394022826,1763200254964,-324.09,0.0003451,7]
[394022827,1763200254973,-709.64,0.00034602,2]
[394022828,1763200254982,-458.1527684,0.00034704,2]
[394022829,1763200254991,-7274.53044615,0.0003493,2]
[394022830,1763200255000,-313.955974,0.0003494,31]
[394022831,1763200255009,-313.955974,0.0003494,31]
[394022832,1763200255017,-313.955974,0.0003494,31]
[394022833,1763200255026,-313.955974,0.0003494,31]
[394022834,1763200255035,-151.0,0.0003494,31]
[394022835,1763200255044,-151.0,0.0003494,31]
[394022836,1763200255053,-151.0,0.0003494,31]
[394022837,1763200255063,-151.0,0.0003494,30]
[394022838,1763200255071,-151.0,0.0003494,31]
[394022839,1763200255081,-151.0,0.0003494,31]
[394022840,1763200255091,-1023.731883,0.0003494,31]
[394022841,1763200255103,-1023.731883,0.0003494,31]
[394022842,1763200255114,-1023.731883,0.0003494,31]
[394022843,1763200255125,-1023.731883,0.0003494,31]
[394022844,1763200255134,-283.59527,0.0003494,31]
[394022845,1763200255143,-283.59527,0.0003494,31]
[394022846,1763200255152,-283.59527,0.0003494,31]
[394022847,1763200255161,-283.59527,0.0003494,31]
[394022848,1763200255171,-16840.23947137,0.0003495,2]
[394022849,1763200255179,-297.324661,0.0003495,31]
[394022850,1763200255191,-158.166004,0.00034986,7]
[394022851,1763200255200,-159.0,0.00035,120]
[394022852,1763200255209,-209.0,0.00035,120]
[394022853,1763200255218,-720.0,0.00035069,30]
[394022854,1763200255227,-500.0,0.000351,7]
[394022855,1763200255237,-709.64,0.0003515,2]
[394022856,1763200255247,-4230.02,0.000352,14]
[394022857,1763200255256,-520.0,0.00035217,2]
[394022858,1763200255267,-2282.6408035,0.0003533,2]
[394022859,1763200255276,-7274.53044615,0.00035606,3]
[394022860,1763200255286,-151.0,0.00035616,31]
[394022861,1763200255295,-500.0,0.00035616,2]
[394022862,1763200255304,-500.0,0.00035616,2]
[394022863,1763200255313,-500.0,0.00035616,2]
[394022864,1763200255322,-500.0,0.00035616,2]
[394022865,1763200255332,-500.0,0.00035616,2]
[394022866,1763200255343,-500.0,0.00035616,2]
[394022867,1763200255352,-500.0,0.00035616,2]
[394022868,1763200255362,-500.0,0.00035616,2]
[394022869,1763200255371,-500.0,0.00035616,2]
[394022870,1763200255380,-500.0,0.00035616,2]
[394022871,1763200255389,-500.0,0.00035616,2]
[394022872,1763200255398,-560.17378711,0.00035616,2]
[394022873,1763200255408,-313.955974,0.00035616,31]
[394022874,1763200255417,-313.955974,0.00035616,31]
[394022875,1763200255427,-313.955974,0.00035616,31]
[394022876,1763200255436,-313.955967,0.00035616,31]
[394022877,1763200255445,-151.0,0.00035616,31]
[394022878,1763200255454,-151.0,0.00035616,31]
[394022879,1763200255465,-151.0,0.00035616,31]
[394022880,1763200255474,-151.0,0.00035616,31]
[394022881,1763200255483,-151.0,0.00035616,31]
[394022882,1763200255493,-1023.731883,0.00035616,31]
[394022883,1763200255502,-1023.731883,0.00035616,31]
[394022884,1763200255511,-1023.731883,0.00035616,31]
[394022885,1763200255521,-1023.73187427,0.00035616,31]
[394022886,1763200255531,-283.59527,0.00035616,31]
[394022887,1763200255540,-283.59527,0.00035616,31]
[394022888,1763200255550,-283.59527,0.00035616,31]
[394022889,1763200255559,-283.595274,0.00035616,31]
[394022890,1763200255568,-503.7769313,0.00035616,5]
[394022891,1763200255578,-151.0,0.00035616,31]
[394022892,1763200255587,-151.0,0.00035616,31]
[394022893,1763200255597,-151.0,0.00035616,31]
[394022894,1763200255606,-151.0,0.00035616,31]
[394022895,1763200255615,-151.0,0.00035616,31]
[394022896,1763200255624,-151.0,0.00035616,31]
[394022897,1763200255634,-151.0,0.00035616,31]
[394022898,1763200255643,-151.0,0.00035616,31]
[394022899,1763200255653,-151.0,0.00035616,31]
[394022900,1763200255662,-151.0,0.00035616,31]
[394022901,1763200255672,-151.0,0.00035616,31]
[394022902,1763200255681,-151.0,0.00035616,31]
[394022903,1763200255690,-151.0,0.00035616,31]
[394022904,1763200255699,-151.0,0.00035616,31]
[394022905,1763200255708,-151.0,0.00035616,31]
[394022906,1763200255719,-151.0,0.00035616,31]
[394022907,1763200255728,-268.221491,0.00035616,31]
[394022908,1763200255739,-709.64,0.00035698,2]
[394022909,1763200255750,-9286.34,0.000357,14]
[394022910,1763200255762,-380.780957,0.000357,7]
[394022911,1763200255771,-380.780957,0.00035925,7]
[394022912,1763200255781,-10000.0,0.0003605,2]
[394022913,1763200255790,-5482.0,0.00036095,2]
[394022914,1763200255799,-380.780957,0.0003615,7]
[394022915,1763200255808,-154.26,0.00036175,60]
[394022916,1763200255817,-151.36,0.00036175,60]
[394022917,1763200255826,-709.64,0.00036246,2]
[394022918,1763200255835,-168.0,0.00036258,2]
[394022919,1763200255844,-154.26,0.00036275,60]
[394022920,1763200255853,-151.36,0.00036275,60]
[394022921,1763200255862,-154.26,0.00036375,60]
[394022922,1763200255871,-151.36,0.00036375,60]
[394022923,1763200255880,-380.780957,0.00036375,7]
[394022924,1763200255889,-154.26,0.00036475,60]
[394022925,1763200255898,-151.36,0.00036475,60]
[394022926,1763200255907,-154.26,0.00036575,60]
[394022927,1763200255917,-151.36,0.00036575,60]
[394022928,1763200255926,-380.780957,0.000366,7]
[394022929,1763200255937,-456.0,0.00036609,2]
[394022930,1763200255947,-154.26,0.00036675,60]
[394022931,1763200256111,-151.36,0.00036675,60]
[394022932,1763200256121,-4433.0,0.00036683,7]
[394022933,1763200256131,-154.26,0.00036775,60]
[394022934,1763200256140,-151.36,0.00036775,60]
[394022935,1763200256150,-709.64,0.00036793,2]
[394022936,1763200256159,-150.63,0.000368,7]
[394022937,1763200256168,-154.26,0.00036875,60]
[394022938,1763200256177,-151.36,0.00036875,60]
[394022939,1763200256187,-7274.53044615,0.00036894,3]
[394022940,1763200256200,-4230.02,0.000369,14]
[394022941,1763200256209,-4433.0,0.00036904,2]
[394022942,1763200256220,-154.33292013,0.00036975,60]
[394022943,1763200256229,-151.36,0.00036975,60]
[394022944,1763200256239,-165.0,0.00037,120]
[394022945,1763200256248,-151.36,0.00037075,60]
[394022946,1763200256257,-151.36,0.00037175,60]
[394022947,1763200256269,-9286.34,0.000372,14]
[394022948,1763200256278,-456.0,0.00037217,2]
[394022949,1763200256287,-151.36,0.00037275,60]
[394022950,1763200256296,-709.64,0.00037341,2]
[394022951,1763200256306,-151.36,0.00037375,60]
[394022952,1763200256315,-4426.0,0.00037388,2]
[394022953,1763200256324,-2149.0,0.00037388,2]
[394022954,1763200256333,-1019.353,0.00037388,2]
[394022955,1763200256342,-632.921,0.00037388,2]
[394022956,1763200256351,-151.5,0.00037475,60]
[394022957,1763200256360,-151.37,0.00037562,60]
[394022958,1763200256370,-455.0,0.00037576,2]
[394022959,1763200256378,-2282.6408035,0.00037592,2]
[394022960,1763200256387,-456.0,0.0003761,120]
[394022961,1763200256396,-151.37,0.00037662,60]
[394022962,1763200256405,-203.0,0.000377,120]
[394022963,1763200256414,-5079.11610223,0.00037739,2]
[394022964,1763200256423,-455.0,0.00037754,2]
[394022965,1763200256433,-151.37,0.00037762,60]
[394022966,1763200256442,-455.0,0.00037838,7]
[394022967,1763200256451,-151.37,0.00037862,60]
[394022968,1763200256460,-709.64,0.00037889,2]
[394022969,1763200256470,-7274.53044615,0.00037942,3]
[394022970,1763200256479,-577.200182,0.00037946,2]
[394022971,1763200256489,-151.37,0.00037962,60]
[394022972,1763200256498,-14357.65167708,0.0003799,2]
[394022973,1763200256507,-14549.0608923,0.0003799,3]
[394022974,1763200256517,-74810.0,0.00038,10]
[394022975,1763200256526,-455.0,0.00038005,2]
[394022976,1763200256537,-151.37,0.00038062,60]
[394022977,1763200256546,-151.37,0.00038162,60]
[394022978,1763200256556,-4230.02,0.000382,14]
[394022979,1763200256566,-455.0,0.00038223,2]
[394022980,1763200256575,-2000.0,0.00038233,7]
[394022981,1763200256585,-455.0,0.00038257,7]
[394022982,1763200256595,-151.37,0.00038262,60]
[394022983,1763200256604,-9286.34,0.000383,14]
[394022984,1763200256614,-150.63,0.000383,7]
[394022985,1763200256624,-1000.0,0.00038356,120]
[394022986,1763200256634,-1000.0,0.00038356,120]
[394022987,1763200256644,-447.1895142,0.00038356,120]
[394022988,1763200256653,-277.770705,0.00038356,120]
[394022989,1763200256663,-277.770705,0.00038356,120]
[394022990,1763200256673,-277.770705,0.00038356,120]
[394022991,1763200256683,-277.770705,0.00038356,120]
[394022992,1763200256692,-277.770705,0.00038356,120]
[394022993,1763200256702,-277.770705,0.00038356,120]
[394022994,1763200256711,-277.770705,0.00038356,120]
[394022995,1763200256721,-277.770705,0.00038356,120]
[394022996,1763200256730,-277.770705,0.00038356,120]
[394022997,1763200256739,-277.770705,0.00038356,120]
[394022998,1763200256749,-277.770705,0.00038356,120]
[394022999,1763200256758,-277.770705,0.00038356,120]
[394023000,1763200256768,-277.770705,0.00038356,120]
[394023001,1763200256777,-277.770705,0.00038356,120]
[394023002,1763200256786,-277.770705,0.00038356,120]
[394023003,1763200256795,-277.770705,0.00038356,120]
[394023004,1763200256805,-277.770705,0.00038356,120]
[394023005,1763200256814,-277.770705,0.00038356,120]
[394023006,1763200256823,-277.770705,0.00038356,120]
[394023007,1763200256833,-277.770711,0.00038356,120]
[394023008,1763200256842,-249.29057005,0.00038356,2]
[394023009,1763200256851,-151.37,0.00038362,120]
[394023010,1763200256861,-709.64,0.00038437,2]
[394023011,1763200256870,-7274.53044615,0.00038459,3]
[394023012,1763200256879,-151.37,0.00038462,120]
[394023013,1763200256889,-799.0,0.00038469,120]
[394023014,1763200256899,-455.0,0.00038524,120]
[394023015,1763200256910,-151.37,0.00038562,120]
[394023016,1763200256920,-864.0,0.00038576,90]
[394023017,1763200256930,-520.0,0.00038599,120]
[394023018,1763200256939,-380.780957,0.0003861,2]
[394023019,1763200256948,-455.0,0.00038645,7]
[394023020,1763200256957,-151.37,0.00038662,120]
[394023021,1763200256967,-455.0,0.00038663,2]
[394023022,1763200256977,-151.37,0.00038762,120]
[394023023,1763200256987,-151.37,0.00038862,120]
[394023024,1763200256996,-200.0,0.00038899,10]
[394023025,1763200257006,-4230.02,0.000389,14]
[394023026,1763200257015,-15458.0,0.00038904,10]
[394023027,1763200257024,-301.0,0.00038915,10]
[394023028,1763200257033,-282.39,0.0003893,10]
[394023029,1763200257042,-549.89,0.00038957,30]
[394023030,1763200257051,-1863.73,0.00038957,120]
[394023031,1763200257060,-878.29507782,0.00038957,20]
[394023032,1763200257070,-124314.60531013,0.00038957,120]
[394023033,1763200257079,-49999.99,0.00038957,2]
[394023034,1763200257088,-1000.0,0.00038957,120]
[394023035,1763200257097,-1000.0,0.00038957,120]
[394023036,1763200257106,-1004.0,0.00038957,120]
[394023037,1763200257116,-4704.43156753,0.00038957,120]
[394023038,1763200257125,-151.37,0.00038962,120]
[394023039,1763200257134,-171.93401041,0.00038973,5]
[394023040,1763200257143,-709.64,0.00038985,2]
[394023041,1763200257152,-1500.0,0.00039,2]
[394023042,1763200257162,-1500.0,0.00039,2]
[394023043,1763200257171,-1567.64,0.00039,2]
[394023044,1763200257180,-380.780957,0.00039,120]
[394023045,1763200257189,-151.37,0.00039062,120]
[394023046,1763200257202,-151.37,0.00039162,120]
[394023047,1763200257211,-2000.0,0.00039213,21]
[394023048,1763200257219,-151.37,0.00039262,120]
[394023049,1763200257229,-520.0,0.00039264,7]
[394023050,1763200257239,-151.37,0.00039362,120]
[394023051,1763200257248,-7274.53044615,0.0003939,3]
[394023052,1763200257257,-9286.34,0.000394,14]
[394023053,1763200257267,-151.37,0.00039462,120]
[394023054,1763200257276,-709.64,0.00039533,2]
[394023055,1763200257285,-151.37,0.00039562,120]
[394023056,1763200257294,-193.14779737,0.000396,120]
[394023057,1763200257303,-1573.32171655,0.000396,120]
[394023058,1763200257312,-185.97451895,0.000396,120]
[394023059,1763200257321,-183.81658153,0.000396,120]
[394023060,1763200257330,-305.00363964,0.000396,120]
[394023061,1763200257340,-171.34017661,0.000396,120]
[394023062,1763200257349,-176.6203032,0.000396,120]
[394023063,1763200257358,-176.37746652,0.000396,120]
[394023064,1763200257367,-162.76638077,0.000396,120]
[394023065,1763200257376,-307.2972228,0.000396,120]
[394023066,1763200257385,-171.24080648,0.000396,120]
[394023067,1763200257394,-177.94084472,0.000396,120]
[394023068,1763200257403,-199.15730163,0.000396,120]
[394023069,1763200257412,-161.29062555,0.000396,120]
[394023070,1763200257422,-4230.02,0.000396,14]
[394023071,1763200257431,-225.090246,0.00039654,2]
[394023072,1763200257440,-151.37,0.00039662,120]
[394023073,1763200257450,-200.0,0.00039662,120]
[394023074,1763200257459,-151.37,0.00039762,120]
[394023075,1763200257470,-520.0,0.00039824,2]
[394023076,1763200257479,-2282.6408035,0.00039854,2]
[394023077,1763200257488,-151.37,0.00039862,120]
[394023078,1763200257497,-151.37,0.00039962,120]
[394023079,1763200257507,-7274.53044615,0.00039989,3]
[394023080,1763200257516,-14549.0608923,0.0003999,3]
[394023081,1763200257525,-200.78668094,0.00039999,30]
[394023082,1763200257534,-13625.56145782,0.0004,2]
[394023083,1763200257543,-80667.63,0.0004,2]
[394023084,1763200257553,-7890.92727023,0.0004,120]
[394023085,1763200257562,-151.37,0.00040062,120]
[394023086,1763200257571,-709.64,0.00040081,2]
[394023087,1763200257581,-151.37,0.00040162,120]
[394023088,1763200257590,-2000.0,0.00040194,21]
[394023089,1763200257599,-159.0,0.000402,120]
[394023090,1763200257608,-151.37,0.00040262,120]
[394023091,1763200257618,-4230.02,0.000403,14]
[394023092,1763200257627,-200.0,0.00040357,120]
[394023093,1763200257636,-151.37,0.00040362,120]
[394023094,1763200257645,-2149.0,0.00040388,2]
[394023095,1763200257654,-988.0,0.00040388,2]
[394023096,1763200257663,-629.0,0.00040388,2]
[394023097,1763200257672,-151.37,0.00040462,120]
[394023098,1763200257681,-9286.34,0.000405,14]
[394023099,1763200257690,-359.40697938,0.00040547,23]
[394023100,1763200257699,-151.37,0.00040562,120]
[394023101,1763200257708,-709.64,0.00040629,2]
[394023102,1763200257718,-151.37,0.00040662,120]
[394023103,1763200257728,-800.8267347,0.0004074,30]
[394023104,1763200257737,-151.37,0.00040762,120]
[394023105,1763200257746,-193.14779737,0.000408,120]
[394023106,1763200257755,-1573.32171655,0.000408,120]
[394023107,1763200257764,-185.97451895,0.000408,120]
[394023108,1763200257773,-171.34017661,0.000408,120]
[394023109,1763200257781,-176.37746652,0.000408,120]
[394023110,1763200257790,-171.24080648,0.000408,120]
[394023111,1763200257799,-177.94084472,0.000408,120]
[394023112,1763200257809,-199.15730163,0.000408,120]
[394023113,1763200257818,-151.37,0.00040862,120]
[394023114,1763200257827,-7274.53044615,0.00040888,3]
[394023115,1763200257838,-5000.0,0.00040898,4]
[394023116,1763200257847,-152.30323945,0.000409,5]
[394023117,1763200257856,-151.37,0.00040962,120]
[394023118,1763200257865,-380.780957,0.00040974,120]
[394023119,1763200257874,-550.0,0.00041,90]
[394023120,1763200257883,-151.37,0.00041062,120]
[394023121,1763200257892,-999.0,0.00041095,120]
[394023122,1763200257901,-500.0,0.00041096,120]
[394023123,1763200257911,-183.61852445,0.00041096,2]
[394023124,1763200257920,-151.37,0.00041162,120]
[394023125,1763200257929,-2000.0,0.00041175,21]
[394023126,1763200257938,-709.67437749,0.00041177,2]
[394023127,1763200257948,-200.0,0.00041221,120]
[394023128,1763200257956,-151.37,0.00041262,120]
[394023129,1763200257966,-151.37,0.00041362,120]
[394023130,1763200257975,-500.0,0.0004137,120]
[394023131,1763200257985,-550.0,0.0004137,90]
[394023132,1763200257994,-627.0,0.00041444,2]
[394023133,1763200258003,-151.37,0.00041462,120]
[394023134,1763200258012,-281.0,0.000415,18]
[394023135,1763200258021,-151.37,0.00041562,120]
[394023136,1763200258030,-5079.11610223,0.00041566,28]
[394023137,1763200258039,-9286.34,0.000416,14]
[394023138,1763200258048,-500.0,0.00041644,120]
[394023139,1763200258058,-151.37,0.00041662,120]
[394023140,1763200258067,-151.37,0.00041762,120]
[394023141,1763200258076,-151.37,0.00041862,120]
[394023142,1763200258085,-500.0,0.00041918,120]
[394023143,1763200258094,-151.37,0.00041962,120]
[394023144,1763200258103,-193.14779737,0.00042,120]
[394023145,1763200258112,-1573.32171655,0.00042,120]
[394023146,1763200258121,-151.37,0.00042062,120]
[394023147,1763200258130,-2282.6408035,0.00042116,2]
[394023148,1763200258139,-2000.0,0.00042155,21]
[394023149,1763200258148,-151.37,0.00042162,120]
[394023150,1763200258157,-500.0,0.00042192,120]
[394023151,1763200258167,-158.166004,0.00042207,120]
[394023152,1763200258176,-151.37,0.00042262,120]
[394023153,1763200258186,-7274.53044615,0.00042352,3]
[394023154,1763200258199,-151.37,0.00042362,120]
[394023155,1763200258208,-1000.0,0.00042434,90]
[394023156,1763200258219,-151.37,0.00042462,120]
[394023157,1763200258228,-500.0,0.00042466,120]
[394023158,1763200258238,-151.37,0.00042562,120]
[394023159,1763200258249,-151.37,0.00042662,120]
[394023160,1763200258258,-380.780957,0.00042707,2]
[394023161,1763200258269,-500.0,0.0004274,120]
[394023162,1763200258278,-151.37,0.00042762,120]
[394023163,1763200258287,-151.37,0.00042862,120]
[394023164,1763200258296,-380.780957,0.00042948,120]
[394023165,1763200258305,-406.49,0.00042962,15]
[394023166,1763200258315,-151.37,0.00042962,120]
[394023167,1763200258325,-500.0,0.00043014,120]
[394023168,1763200258335,-151.37,0.00043062,120]
[394023169,1763200258345,-2000.0,0.00043136,21]
[394023170,1763200258355,-550.0,0.00043151,90]
[394023171,1763200258363,-151.37,0.00043162,120]
[394023172,1763200258372,-1966.4424,0.0004322,30]
[394023173,1763200258381,-151.37,0.00043262,120]
[394023174,1763200258391,-500.0,0.00043288,120]
[394023175,1763200258400,-193.14779737,0.000433,120]
[394023176,1763200258410,-1573.32171655,0.000433,120]
[394023177,1763200258419,-151.37,0.00043362,120]
[394023178,1763200258475,-2149.0,0.00043388,2]
[394023179,1763200258484,-988.0,0.00043388,2]
[394023180,1763200258494,-629.0,0.00043388,2]
[394023181,1763200258503,-22000.0,0.00043438,12]
[394023182,1763200258512,-3046.1759599,0.00043438,12]
[394023183,1763200258521,-151.37,0.00043462,120]
[394023184,1763200258530,-500.0,0.00043562,120]
[394023185,1763200258539,-710.97719485,0.00043562,120]
[394023186,1763200258550,-151.37,0.00043562,120]
[394023187,1763200258559,-7274.53044615,0.00043613,3]
[394023188,1763200258570,-151.37,0.00043662,120]
[394023189,1763200258579,-300.0,0.00043726,30]
[394023190,1763200258588,-151.37,0.00043762,120]
[394023191,1763200258597,-999.0,0.00043835,120]
[394023192,1763200258606,-500.0,0.00043836,120]
[394023193,1763200258615,-151.37,0.00043862,120]
[394023194,1763200258624,-153.0,0.0004389,30]
[394023195,1763200258632,-151.37,0.00043962,120]
[394023196,1763200258642,-151.37,0.00044062,120]
[394023197,1763200258651,-457.76,0.00044109,14]
[394023198,1763200258660,-500.0,0.0004411,120]
[394023199,1763200258669,-2000.0,0.00044116,21]
[394023200,1763200258678,-151.37,0.00044162,120]
[394023201,1763200258687,-420.1332827,0.00044164,30]
[394023202,1763200258696,-160.0,0.0004417,3]
[394023203,1763200258704,-151.37,0.00044262,120]
[394023204,1763200258713,-151.37,0.00044362,120]
[394023205,1763200258722,-2282.6408035,0.00044377,2]
[394023206,1763200258730,-500.0,0.00044384,120]
[394023207,1763200258739,-10000.0,0.00044427,12]
[394023208,1763200258748,-10000.0,0.00044436,12]
[394023209,1763200258757,-10000.0,0.00044445,12]
[394023210,1763200258767,-151.37,0.00044462,120]
[394023211,1763200258776,-151.37,0.00044562,120]
[394023212,1763200258785,-193.14779737,0.000446,120]
[394023213,1763200258794,-1573.32171655,0.000446,120]
[394023214,1763200258803,-7274.53044615,0.00044648,3]
[394023215,1763200258812,-500.0,0.00044658,120]
[394023216,1763200258821,-151.37,0.00044662,120]
[394023217,1763200258830,-151.37,0.00044762,120]
[394023218,1763200258839,-151.37,0.00044862,120]
[394023219,1763200258848,-380.780957,0.00044923,120]
[394023220,1763200258857,-160.0,0.00044928,4]
[394023221,1763200258865,-500.0,0.00044932,120]
[394023222,1763200258874,-151.89567808,0.00044962,120]
[394023223,1763200258883,-7169.65304294,0.0004498,7]
[394023224,1763200258891,-7274.53044615,0.0004498,3]
[394023225,1763200258901,-400000.0,0.00045,2]
[394023226,1763200258910,-400000.0,0.00045,2]
[394023227,1763200258918,-1998.21385857,0.00045,120]
[394023228,1763200258927,-12338.1651297,0.00045023,2]
[394023229,1763200258936,-2000.0,0.00045097,21]
[394023230,1763200258945,-500.0,0.00045205,120]
[394023231,1763200258954,-627.0,0.00045237,7]
[394023232,1763200258963,-554.0,0.00045308,90]
[394023233,1763200258972,-760.0,0.00045361,2]
[394023234,1763200258982,-200.0,0.00045407,120]
[394023235,1763200258991,-457.76,0.00045479,15]
[394023236,1763200259000,-500.0,0.00045479,120]
[394023237,1763200259009,-159.0,0.000455,120]
[394023238,1763200259018,-160.0,0.00045687,5]
[394023239,1763200259026,-500.0,0.00045753,120]
[394023240,1763200259035,-608.0932411,0.00046,30]
[394023241,1763200259044,-500.0,0.00046027,120]
[394023242,1763200259054,-2000.0,0.00046078,21]
[394023243,1763200259062,-225.090246,0.00046143,2]
[394023244,1763200259071,-500.0,0.00046301,120]
[394023245,1763200259080,-2149.0,0.00046388,2]
[394023246,1763200259089,-988.0,0.00046388,2]
[394023247,1763200259098,-629.0,0.00046388,2]
[394023248,1763200259107,-160.0,0.00046446,6]
[394023249,1763200259116,-400.0,0.00046466,60]
[394023250,1763200259125,-999.0,0.00046575,120]
[394023251,1763200259135,-500.0,0.00046575,120]
[394023252,1763200259144,-2284.92344431,0.00046639,2]
[394023253,1763200259153,-1000.0,0.00046677,90]
[394023254,1763200259162,-244.0,0.00046677,90]
[394023255,1763200259171,-380.780957,0.00046804,2]
[394023256,1763200259180,-457.76,0.00046849,16]
[394023257,1763200259190,-500.0,0.00046849,120]
[394023258,1763200259203,-380.780957,0.00046897,120]
[394023259,1763200259212,-2000.0,0.00047058,21]
[394023260,1763200259221,-1000.0,0.00047104,14]
[394023261,1763200259230,-780.0,0.00047104,14]
[394023262,1763200259242,-500.0,0.00047123,120]
[394023263,1763200259252,-160.0,0.00047205,7]
[394023264,1763200259261,-1000.0,0.00047241,14]
[394023265,1763200259273,-200.0,0.0004729,120]
[394023266,1763200259282,-206.0,0.0004736,74]
[394023267,1763200259291,-1000.0,0.00047378,14]
[394023268,1763200259300,-500.0,0.00047397,120]
[394023269,1763200259309,-200.0,0.0004741,120]
[394023270,1763200259318,-200.0,0.00047458,120]
[394023271,1763200259327,-1000.0,0.00047515,14]
[394023272,1763200259336,-1000.0,0.00047652,14]
[394023273,1763200259345,-1000.0,0.00047789,14]
[394023274,1763200259354,-1592345.89905224,0.000479,2]
[394023275,1763200259364,-48998.741466,0.000479,2]
[394023276,1763200259373,-600.0,0.00047904,2]
[394023277,1763200259382,-1000.0,0.00047926,14]
[394023278,1763200259391,-160.0,0.00047964,8]
[394023279,1763200259400,-1000.0,0.00048,120]
[394023280,1763200259409,-1100.0,0.00048,120]
[394023281,1763200259418,-603.69588,0.00048,120]
[394023282,1763200259428,-1630749.86,0.00048,120]
[394023283,1763200259438,-2000.0,0.00048039,21]
[394023284,1763200259447,-1000.0,0.00048063,14]
[394023285,1763200259455,-547.05572263,0.00048136,120]
[394023286,1763200259464,-182.40711304,0.00048136,120]
[394023287,1763200259473,-593.6265394,0.00048137,30]
[394023288,1763200259483,-593.6265394,0.00048137,30]
[394023289,1763200259492,-600.8842212,0.00048137,30]
[394023290,1763200259501,-593.6265394,0.00048137,30]
[394023291,1763200259510,-593.6265394,0.00048137,30]
[394023292,1763200259520,-593.6265394,0.00048137,30]
[394023293,1763200259529,-593.6265394,0.00048137,30]
[394023294,1763200259538,-593.6265394,0.00048137,30]
[394023295,1763200259547,-164.2628813,0.00048137,30]
[394023296,1763200259556,-164.2628813,0.00048137,30]
[394023297,1763200259565,-164.2628813,0.00048137,30]
[394023298,1763200259574,-593.6265394,0.00048137,30]
[394023299,1763200259583,-164.2628813,0.00048137,30]
[394023300,1763200259593,-164.2628813,0.00048137,30]
[394023301,1763200259602,-592.4363175,0.00048137,30]
[394023302,1763200259610,-164.2628813,0.00048137,30]
[394023303,1763200259619,-164.2628813,0.00048137,30]
[394023304,1763200259629,-164.2628813,0.00048137,30]
[394023305,1763200259638,-164.2628813,0.00048137,30]
[394023306,1763200259647,-1000.0,0.000482,14]
[394023307,1763200259656,-172.5,0.00048219,120]
[394023308,1763200259665,-457.76,0.00048219,17]
[394023309,1763200259674,-550.0,0.00048329,90]
[394023310,1763200259684,-600.0,0.00048403,2]
[394023311,1763200259693,-158.78343214,0.00048438,30]
[394023312,1763200259702,-1354820.46950203,0.0004851,2]
[394023313,1763200259711,-200.0,0.00048539,120]